[Event "Late-Titled-Tuesday-Blitz-January-16-2024"]
[Site "Chess.com"]
[Date "2024.01.16"]
[Round "3"]
[White "shirovin"]
[Black "Iuckyducky"]
[Result "0-1"]
[WhiteElo "2006"]
[BlackElo "2321"]
[TimeControl "180+1"]
[EndTime "14:27:35 PST"]
[Termination "Iuckyducky won on time"]

1. Nc3 {[%clk 0:03:00.9]} 1... Nf6 {[%clk 0:02:59.6]} 2. e4 {[%clk 0:02:59.9]}
2... c5 {[%clk 0:02:59.2]} 3. e5 {[%clk 0:02:55.5]} 3... Ng8 {[%clk 0:02:58.7]}
4. Nf3 {[%clk 0:02:55]} 4... Nc6 {[%clk 0:02:58.6]} 5. Bc4 {[%clk 0:02:55.3]}
5... d6 {[%clk 0:02:57.7]} 6. e6 {[%clk 0:02:40.2]} 6... Bxe6 {[%clk 0:02:44.2]}
7. Bxe6 {[%clk 0:02:38.9]} 7... fxe6 {[%clk 0:02:45.1]} 8. O-O {[%clk 0:02:29]}
8... Nf6 {[%clk 0:02:42.4]} 9. Re1 {[%clk 0:02:28.5]} 9... Qd7 {[%clk
0:02:41.8]} 10. Qe2 {[%clk 0:02:28.2]} 10... e5 {[%clk 0:02:41.7]} 11. d3 {[%clk
0:02:18.9]} 11... e6 {[%clk 0:02:29.3]} 12. Ne4 {[%clk 0:01:59.5]} 12... Be7
{[%clk 0:02:25.4]} 13. c3 {[%clk 0:01:58.6]} 13... O-O {[%clk 0:02:23.2]} 14.
Nfg5 {[%clk 0:01:57.6]} 14... h6 {[%clk 0:02:20.9]} 15. Nh3 {[%clk 0:01:51.3]}
15... Rf7 {[%clk 0:02:09.8]} 16. f4 {[%clk 0:01:50.8]} 16... exf4 {[%clk
0:02:08.1]} 17. Nxf4 {[%clk 0:01:50.1]} 17... Nxe4 {[%clk 0:02:04]} 18. Qxe4
{[%clk 0:01:43.4]} 18... e5 {[%clk 0:02:01.9]} 19. Nh5 {[%clk 0:01:32.3]} 19...
Raf8 {[%clk 0:01:48.8]} 20. Bxh6 {[%clk 0:01:06.7]} 20... gxh6 {[%clk
0:01:35.3]} 21. Qg6+ {[%clk 0:01:05]} 21... Kh8 {[%clk 0:01:35.7]} 22. Qxh6+
{[%clk 0:01:03.8]} 22... Rh7 {[%clk 0:01:35.9]} 23. Qg6 {[%clk 0:00:38.2]} 23...
Rg8 {[%clk 0:01:30.6]} 24. Nf6 {[%clk 0:00:32.3]} 24... Rxg6 {[%clk 0:01:30.6]}
25. Nxd7 {[%clk 0:00:31.5]} 25... Rhg7 {[%clk 0:01:11.6]} 26. Re2 {[%clk
0:00:23.2]} 26... Kg8 {[%clk 0:00:47.6]} 27. d4 {[%clk 0:00:19.3]} 27... Bg5
{[%clk 0:00:37.1]} 28. d5 {[%clk 0:00:17]} 28... Nd8 {[%clk 0:00:32.2]} 29. Nb8
{[%clk 0:00:15.3]} 29... Rf7 {[%clk 0:00:20.5]} 30. b4 {[%clk 0:00:14.4]} 30...
Rgf6 {[%clk 0:00:17]} 31. bxc5 {[%clk 0:00:12.6]} 31... dxc5 {[%clk 0:00:17.9]}
32. c4 {[%clk 0:00:10.6]} 32... Rf5 {[%clk 0:00:15.2]} 33. Rb1 {[%clk
0:00:07.9]} 33... Kf8 {[%clk 0:00:07.4]} 34. g3 {[%clk 0:00:06.5]} 34... Bf6
{[%clk 0:00:07]} 35. Kg2 {[%clk 0:00:05.6]} 35... Ke8 {[%clk 0:00:07.1]} 36. g4
{[%clk 0:00:05]} 36... Rg5 {[%clk 0:00:06.7]} 37. h3 {[%clk 0:00:05.5]} 37...
Rc7 {[%clk 0:00:05.8]} 38. Re4 {[%clk 0:00:05.2]} 38... Rc8 {[%clk 0:00:05.8]}
39. d6 {[%clk 0:00:03]} 39... Rxb8 {[%clk 0:00:05.5]} 40. Rd1 {[%clk 0:00:02.1]}
40... Kd7 {[%clk 0:00:05.8]} 0-1

[Event "Late-Titled-Tuesday-Blitz-January-16-2024"]
[Site "Chess.com"]
[Date "2024.01.16"]
[Round "3"]
[White "sina101"]
[Black "Mr_November18"]
[Result "1-0"]
[WhiteElo "2529"]
[BlackElo "2059"]
[TimeControl "180+1"]
[EndTime "14:27:37 PST"]
[Termination "sina101 won on time"]

1. e4 {[%clk 0:03:00.9]} 1... c5 {[%clk 0:02:31.2]} 2. Nf3 {[%clk 0:03:00.7]}
2... d6 {[%clk 0:02:30.6]} 3. b3 {[%clk 0:02:59.6]} 3... Nf6 {[%clk 0:02:29.7]}
4. Nc3 {[%clk 0:02:59.1]} 4... g6 {[%clk 0:02:28.6]} 5. Bb2 {[%clk 0:02:59.8]}
5... e5 {[%clk 0:02:27.3]} 6. Bc4 {[%clk 0:02:58.7]} 6... Bg7 {[%clk 0:02:25.6]}
7. O-O {[%clk 0:02:57.9]} 7... O-O {[%clk 0:02:24.7]} 8. Re1 {[%clk 0:02:57.1]}
8... Bg4 {[%clk 0:02:23.3]} 9. h3 {[%clk 0:02:56.4]} 9... Bxf3 {[%clk 0:02:23]}
10. Qxf3 {[%clk 0:02:57.3]} 10... Nc6 {[%clk 0:02:22.3]} 11. Nd5 {[%clk
0:02:54.7]} 11... Nxd5 {[%clk 0:02:12.1]} 12. Bxd5 {[%clk 0:02:55.6]} 12... Rb8
{[%clk 0:02:06.3]} 13. Bxc6 {[%clk 0:02:39.5]} 13... bxc6 {[%clk 0:02:05]} 14.
c4 {[%clk 0:02:35.7]} 14... a5 {[%clk 0:02:01.7]} 15. Bc3 {[%clk 0:02:27.4]}
15... Qc7 {[%clk 0:01:42.8]} 16. h4 {[%clk 0:02:10.2]} 16... h5 {[%clk
0:01:39.9]} 17. d3 {[%clk 0:02:10.3]} 17... Ra8 {[%clk 0:01:31.9]} 18. Rab1
{[%clk 0:02:07.4]} 18... Qd7 {[%clk 0:01:18]} 19. Qe3 {[%clk 0:01:55.9]} 19...
Kh7 {[%clk 0:01:15.8]} 20. Qd2 {[%clk 0:01:55.5]} 20... Qc7 {[%clk 0:01:12.9]}
21. g3 {[%clk 0:01:50.7]} 21... a4 {[%clk 0:01:05.8]} 22. b4 {[%clk 0:01:48.6]}
22... cxb4 {[%clk 0:01:05.3]} 23. Rxb4 {[%clk 0:01:48]} 23... c5 {[%clk
0:01:03.5]} 24. Rb5 {[%clk 0:01:45.8]} 24... Rfb8 {[%clk 0:01:00]} 25. Reb1
{[%clk 0:01:46.3]} 25... Rxb5 {[%clk 0:00:59.4]} 26. cxb5 {[%clk 0:01:42.7]}
26... Qd7 {[%clk 0:00:52.2]} 27. b6 {[%clk 0:01:41.4]} 27... Qh3 {[%clk
0:00:43.8]} 28. b7 {[%clk 0:01:37.5]} 28... Rb8 {[%clk 0:00:43.6]} 29. Ba5
{[%clk 0:01:32.1]} 29... Qd7 {[%clk 0:00:41.9]} 30. Qb2 {[%clk 0:01:32.5]} 30...
f5 {[%clk 0:00:38.2]} 31. Qb5 {[%clk 0:01:30.8]} 31... Qf7 {[%clk 0:00:30.7]}
32. exf5 {[%clk 0:01:22.5]} 32... gxf5 {[%clk 0:00:23.4]} 33. Qc6 {[%clk
0:01:21.7]} 33... Qxa2 {[%clk 0:00:22.2]} 34. Rb5 {[%clk 0:01:00.8]} 34... f4
{[%clk 0:00:19.1]} 35. Qe4+ {[%clk 0:00:58.1]} 35... Kh6 {[%clk 0:00:15.6]} 36.
Bc7 {[%clk 0:00:53.2]} 36... fxg3 {[%clk 0:00:13.6]} 37. fxg3 {[%clk 0:00:52.5]}
37... Rf8 {[%clk 0:00:08.4]} 38. Qg2 {[%clk 0:00:43.8]} 38... Qa1+ {[%clk
0:00:07.4]} 39. Kh2 {[%clk 0:00:42.3]} 39... Qe1 {[%clk 0:00:07.3]} 40. Rb2
{[%clk 0:00:35.6]} 40... Rf1 {[%clk 0:00:05.8]} 41. b8=Q {[%clk 0:00:32.1]}
41... e4 {[%clk 0:00:02.3]} 42. Qd8 {[%clk 0:00:16.3]} 1-0

[Event "Late-Titled-Tuesday-Blitz-January-16-2024"]
[Site "Chess.com"]
[Date "2024.01.16"]
[Round "3"]
[White "Levanzovsky"]
[Black "FoxOnTheRun97"]
[Result "0-1"]
[WhiteElo "2474"]
[BlackElo "2644"]
[TimeControl "180+1"]
[EndTime "14:27:38 PST"]
[Termination "FoxOnTheRun97 won on time"]

1. c4 {[%clk 0:03:00.4]} 1... c6 {[%clk 0:02:59.9]} 2. Nf3 {[%clk 0:02:58.5]}
2... d5 {[%clk 0:03:00]} 3. e3 {[%clk 0:02:59.1]} 3... Nf6 {[%clk 0:02:59.9]} 4.
b3 {[%clk 0:02:59.5]} 4... g6 {[%clk 0:03:00.2]} 5. Bb2 {[%clk 0:02:59.6]} 5...
Bg7 {[%clk 0:03:00.7]} 6. Be2 {[%clk 0:02:56]} 6... O-O {[%clk 0:03:00.9]} 7.
O-O {[%clk 0:02:55.9]} 7... Bf5 {[%clk 0:02:50.3]} 8. d3 {[%clk 0:02:45.6]} 8...
dxc4 {[%clk 0:02:45.3]} 9. bxc4 {[%clk 0:02:43.3]} 9... Na6 {[%clk 0:02:42.2]}
10. Nd4 {[%clk 0:02:20.6]} 10... Ne8 {[%clk 0:02:29.8]} 11. Nd2 {[%clk
0:02:07.1]} 11... c5 {[%clk 0:02:06.5]} 12. Nxf5 {[%clk 0:02:06.1]} 12... Bxb2
{[%clk 0:02:06.7]} 13. Rb1 {[%clk 0:02:04.2]} 13... Bf6 {[%clk 0:02:05.4]} 14.
Nh6+ {[%clk 0:02:03.6]} 14... Kg7 {[%clk 0:02:05.3]} 15. Ng4 {[%clk 0:02:03.6]}
15... Rb8 {[%clk 0:01:53.8]} 16. Qa4 {[%clk 0:01:59.8]} 16... Nd6 {[%clk
0:01:40.4]} 17. Nxf6 {[%clk 0:01:56.5]} 17... exf6 {[%clk 0:01:35.7]} 18. Bf3
{[%clk 0:01:49.3]} 18... Nb4 {[%clk 0:01:28.8]} 19. d4 {[%clk 0:01:41.6]} 19...
a5 {[%clk 0:01:04]} 20. dxc5 {[%clk 0:01:33.5]} 20... Nf5 {[%clk 0:01:02.6]} 21.
Nb3 {[%clk 0:01:32.3]} 21... Nh4 {[%clk 0:00:48.6]} 22. Qxa5 {[%clk 0:01:18.4]}
22... Nxf3+ {[%clk 0:00:39.7]} 23. gxf3 {[%clk 0:01:19.3]} 23... Nc6 {[%clk
0:00:31.5]} 24. Qxd8 {[%clk 0:01:15.6]} 24... Rfxd8 {[%clk 0:00:32.4]} 25. Rfd1
{[%clk 0:01:13.8]} 25... Rdc8 {[%clk 0:00:32.1]} 26. f4 {[%clk 0:01:05]} 26...
Ra8 {[%clk 0:00:26.1]} 27. Nd4 {[%clk 0:00:57.6]} 27... Na5 {[%clk 0:00:23.3]}
28. Rb5 {[%clk 0:00:46.1]} 28... Nxc4 {[%clk 0:00:21.7]} 29. Rxb7 {[%clk
0:00:41.9]} 29... Rxa2 {[%clk 0:00:22.1]} 30. Rc1 {[%clk 0:00:36]} 30... Nd6
{[%clk 0:00:09.4]} 31. cxd6 {[%clk 0:00:19.3]} 31... Rxc1+ {[%clk 0:00:08.7]}
32. Kg2 {[%clk 0:00:19.9]} 32... Ra8 {[%clk 0:00:07.4]} 33. d7 {[%clk
0:00:13.6]} 33... Rd8 {[%clk 0:00:07.2]} 34. Kf3 {[%clk 0:00:08.2]} 34... Kf8
{[%clk 0:00:06.6]} 35. Rb6 {[%clk 0:00:03.1]} 35... Rc7 {[%clk 0:00:05.8]} 36.
Rxf6 {[%clk 0:00:02.5]} 36... Kg7 {[%clk 0:00:05.5]} 37. Ra6 {[%clk 0:00:02.7]}
37... Rdxd7 {[%clk 0:00:05.9]} 38. Ra8 {[%clk 0:00:02.7]} 38... h5 {[%clk
0:00:06.1]} 39. Ra5 {[%clk 0:00:02.5]} 39... Rc3 {[%clk 0:00:06.2]} 0-1

[Event "Late-Titled-Tuesday-Blitz-January-16-2024"]
[Site "Chess.com"]
[Date "2024.01.16"]
[Round "3"]
[White "RCone"]
[Black "TangerineandLemon25"]
[Result "0-1"]
[WhiteElo "2425"]
[BlackElo "2611"]
[TimeControl "180+1"]
[EndTime "14:27:38 PST"]
[Termination "TangerineandLemon25 won on time"]

1. e4 {[%clk 0:03:00.9]} 1... c5 {[%clk 0:02:57.3]} 2. Nc3 {[%clk 0:02:58.1]}
2... d6 {[%clk 0:02:56.1]} 3. f4 {[%clk 0:02:56.1]} 3... g6 {[%clk 0:02:56]} 4.
Nf3 {[%clk 0:02:56.3]} 4... Bg7 {[%clk 0:02:55.8]} 5. Bb5+ {[%clk 0:02:56.4]}
5... Bd7 {[%clk 0:02:55.1]} 6. Bxd7+ {[%clk 0:02:56.7]} 6... Qxd7 {[%clk
0:02:55]} 7. d3 {[%clk 0:02:57.5]} 7... Nc6 {[%clk 0:02:55]} 8. O-O {[%clk
0:02:57.9]} 8... e6 {[%clk 0:02:45.9]} 9. f5 {[%clk 0:02:57.1]} 9... Nge7 {[%clk
0:02:35.6]} 10. fxe6 {[%clk 0:02:53.9]} 10... fxe6 {[%clk 0:02:36.5]} 11. Ng5
{[%clk 0:02:40.5]} 11... O-O-O {[%clk 0:02:23.6]} 12. Nf7 {[%clk 0:02:38.4]}
12... Ne5 {[%clk 0:01:20.5]} 13. Nxh8 {[%clk 0:02:36.6]} 13... Rxh8 {[%clk
0:01:21.4]} 14. Be3 {[%clk 0:02:27.7]} 14... N7c6 {[%clk 0:01:12.3]} 15. h3
{[%clk 0:02:21.8]} 15... Qe7 {[%clk 0:00:57.7]} 16. Qd2 {[%clk 0:02:19.6]} 16...
h6 {[%clk 0:00:55]} 17. Ne2 {[%clk 0:02:02.1]} 17... g5 {[%clk 0:00:53]} 18. Ng3
{[%clk 0:01:35.4]} 18... Ng6 {[%clk 0:00:50.9]} 19. Nh5 {[%clk 0:01:34.3]} 19...
Bxb2 {[%clk 0:00:50.7]} 20. Rab1 {[%clk 0:01:33.8]} 20... Be5 {[%clk 0:00:51.2]}
21. c3 {[%clk 0:01:29.6]} 21... d5 {[%clk 0:00:51.1]} 22. d4 {[%clk 0:01:29.1]}
22... cxd4 {[%clk 0:00:49.8]} 23. cxd4 {[%clk 0:01:28.6]} 23... Bc7 {[%clk
0:00:50.7]} 24. e5 {[%clk 0:01:22]} 24... Nh4 {[%clk 0:00:47.4]} 25. Rf6 {[%clk
0:00:59.8]} 25... Bb6 {[%clk 0:00:45.1]} 26. Rbf1 {[%clk 0:00:51.7]} 26... Nf5
{[%clk 0:00:42.6]} 27. Bf2 {[%clk 0:00:47.5]} 27... Nfxd4 {[%clk 0:00:28]} 28.
Kh1 {[%clk 0:00:39.9]} 28... Nf5 {[%clk 0:00:25.2]} 29. Bxb6 {[%clk 0:00:38.7]}
29... axb6 {[%clk 0:00:26.1]} 30. g4 {[%clk 0:00:32.9]} 30... Nfd4 {[%clk
0:00:25.8]} 31. Rf7 {[%clk 0:00:32]} 31... Qa3 {[%clk 0:00:24.2]} 32. Kg2 {[%clk
0:00:25.3]} 32... Kb8 {[%clk 0:00:22]} 33. Nf6 {[%clk 0:00:19.3]} 33... Rc8
{[%clk 0:00:21.3]} 34. Nd7+ {[%clk 0:00:19.4]} 34... Ka7 {[%clk 0:00:22]} 35.
R7f3 {[%clk 0:00:08.3]} 35... Nxf3 {[%clk 0:00:20.4]} 36. Rxf3 {[%clk
0:00:09.2]} 36... Qa6 {[%clk 0:00:20.3]} 37. Qb2 {[%clk 0:00:07.7]} 37... Na5
{[%clk 0:00:20.1]} 38. Ra3 {[%clk 0:00:06.8]} 38... Rc6 {[%clk 0:00:18.3]} 39.
Rb3 {[%clk 0:00:06.9]} 39... Nxb3 {[%clk 0:00:17.8]} 40. axb3 {[%clk 0:00:06.4]}
40... Qa5 {[%clk 0:00:17.7]} 41. b4 {[%clk 0:00:06]} 41... Qa4 {[%clk
0:00:18.1]} 42. Kg3 {[%clk 0:00:02.3]} 42... Rc2 {[%clk 0:00:16.3]} 43. Qd4
{[%clk 0:00:01.9]} 43... Qb3+ {[%clk 0:00:16.1]} 0-1

[Event "Late-Titled-Tuesday-Blitz-January-16-2024"]
[Site "Chess.com"]
[Date "2024.01.16"]
[Round "3"]
[White "IgorBjelobrk"]
[Black "VladimirKramnik"]
[Result "1-0"]
[WhiteElo "2657"]
[BlackElo "2907"]
[TimeControl "180+1"]
[EndTime "14:27:39 PST"]
[Termination "IgorBjelobrk won on time"]

1. d4 {[%clk 0:03:00]} 1... Nf6 {[%clk 0:02:59]} 2. c4 {[%clk 0:02:59.9]} 2...
e6 {[%clk 0:02:58.8]} 3. g3 {[%clk 0:02:59.5]} 3... Bb4+ {[%clk 0:02:56.9]} 4.
Bd2 {[%clk 0:02:59.5]} 4... Be7 {[%clk 0:02:56]} 5. Bg2 {[%clk 0:02:57.2]} 5...
d5 {[%clk 0:02:56.6]} 6. Nf3 {[%clk 0:02:56.4]} 6... c6 {[%clk 0:02:54.8]} 7.
Qc2 {[%clk 0:02:53.2]} 7... Nbd7 {[%clk 0:02:55.2]} 8. O-O {[%clk 0:02:52.7]}
8... Ne4 {[%clk 0:02:53.5]} 9. Nc3 {[%clk 0:02:43.1]} 9... f5 {[%clk 0:02:52.9]}
10. b3 {[%clk 0:02:33.2]} 10... O-O {[%clk 0:02:48.5]} 11. Bc1 {[%clk
0:02:32.7]} 11... b6 {[%clk 0:02:36.1]} 12. Bb2 {[%clk 0:02:31.4]} 12... Bb7
{[%clk 0:02:34.3]} 13. Rad1 {[%clk 0:02:31.1]} 13... Rc8 {[%clk 0:02:26.2]} 14.
Ne5 {[%clk 0:02:28.7]} 14... Nxe5 {[%clk 0:02:20.6]} 15. dxe5 {[%clk 0:02:28.7]}
15... Qe8 {[%clk 0:02:03.7]} 16. Nxe4 {[%clk 0:02:10]} 16... fxe4 {[%clk
0:02:03]} 17. f3 {[%clk 0:02:07.4]} 17... Qg6 {[%clk 0:01:46.3]} 18. fxe4 {[%clk
0:02:01.1]} 18... c5 {[%clk 0:01:44.4]} 19. cxd5 {[%clk 0:01:47.4]} 19... exd5
{[%clk 0:01:44.1]} 20. Rf5 {[%clk 0:01:47.1]} 20... b5 {[%clk 0:00:58.4]} 21.
Rdf1 {[%clk 0:01:16.3]} 21... d4 {[%clk 0:00:57.5]} 22. b4 {[%clk 0:01:04.4]}
22... Qb6 {[%clk 0:00:38.2]} 23. bxc5 {[%clk 0:01:00.4]} 23... Qxc5 {[%clk
0:00:37]} 24. Qd3 {[%clk 0:00:52.4]} 24... Rcd8 {[%clk 0:00:23.8]} 25. Rc1
{[%clk 0:00:38.5]} 25... Qb4 {[%clk 0:00:23.1]} 26. Qb3+ {[%clk 0:00:31.5]}
26... Qxb3 {[%clk 0:00:22.6]} 27. axb3 {[%clk 0:00:32.4]} 27... Bc8 {[%clk
0:00:16.7]} 28. Rxf8+ {[%clk 0:00:30.7]} 28... Bxf8 {[%clk 0:00:16.7]} 29. Bxd4
{[%clk 0:00:26.3]} 29... Be6 {[%clk 0:00:09.5]} 30. Bxa7 {[%clk 0:00:25.6]}
30... Bxb3 {[%clk 0:00:09.7]} 31. Kf2 {[%clk 0:00:24.6]} 31... b4 {[%clk
0:00:09.1]} 32. Bh3 {[%clk 0:00:21.4]} 32... Re8 {[%clk 0:00:07.1]} 33. e6
{[%clk 0:00:21.5]} 33... Bxe6 {[%clk 0:00:06.3]} 34. Bxe6+ {[%clk 0:00:21.3]}
34... Rxe6 {[%clk 0:00:06.9]} 35. Ke3 {[%clk 0:00:21.6]} 35... Ra6 {[%clk
0:00:04.6]} 36. Bd4 {[%clk 0:00:21.2]} 36... b3 {[%clk 0:00:02.9]} 37. Rc8
{[%clk 0:00:20.4]} 37... Kf7 {[%clk 0:00:02.2]} 38. Rb8 {[%clk 0:00:20.7]} 38...
Ra3 {[%clk 0:00:02.6]} 39. Kd2 {[%clk 0:00:18.9]} 39... Bd6 {[%clk 0:00:02.1]}
40. Rb7+ {[%clk 0:00:18.2]} 40... Ke6 {[%clk 0:00:02.7]} 41. Rb6 {[%clk
0:00:18.2]} 41... Kd7 {[%clk 0:00:01.9]} 42. Bb2 {[%clk 0:00:16.3]} 42... Ra4
{[%clk 0:00:01.4]} 43. e5 {[%clk 0:00:15.4]} 1-0

[Event "Late-Titled-Tuesday-Blitz-January-16-2024"]
[Site "Chess.com"]
[Date "2024.01.16"]
[Round "3"]
[White "nfds"]
[Black "Jarming"]
[Result "0-1"]
[WhiteElo "2501"]
[BlackElo "2709"]
[TimeControl "180+1"]
[EndTime "14:27:39 PST"]
[Termination "Jarming won by resignation"]

1. Nc3 {[%clk 0:03:00.9]} 1... g6 {[%clk 0:02:58.7]} 2. Nf3 {[%clk 0:02:58.7]}
2... c5 {[%clk 0:02:58]} 3. g3 {[%clk 0:02:57.9]} 3... Bg7 {[%clk 0:02:57.8]} 4.
Bg2 {[%clk 0:02:57.3]} 4... Nc6 {[%clk 0:02:58.7]} 5. O-O {[%clk 0:02:53.3]}
5... e5 {[%clk 0:02:59.1]} 6. e3 {[%clk 0:02:51.8]} 6... d5 {[%clk 0:02:58.2]}
7. d3 {[%clk 0:02:38.1]} 7... Nf6 {[%clk 0:02:57]} 8. Bd2 {[%clk 0:02:22.7]}
8... h6 {[%clk 0:02:56.6]} 9. Qe2 {[%clk 0:02:09.9]} 9... O-O {[%clk 0:02:54.6]}
10. e4 {[%clk 0:02:02.3]} 10... d4 {[%clk 0:02:53.9]} 11. Nb1 {[%clk 0:02:00.9]}
11... Be6 {[%clk 0:02:50.9]} 12. a4 {[%clk 0:01:59.2]} 12... a6 {[%clk
0:02:50.7]} 13. Na3 {[%clk 0:01:57.1]} 13... Rb8 {[%clk 0:02:47.6]} 14. a5
{[%clk 0:01:51.5]} 14... Ne8 {[%clk 0:02:13.2]} 15. Nc4 {[%clk 0:01:36.1]} 15...
Nd6 {[%clk 0:02:12]} 16. b3 {[%clk 0:01:25.2]} 16... Re8 {[%clk 0:02:06.4]} 17.
Rfe1 {[%clk 0:01:21.1]} 17... Re7 {[%clk 0:02:01.7]} 18. Nh4 {[%clk 0:01:21.4]}
18... Qc7 {[%clk 0:01:47.6]} 19. Nb6 {[%clk 0:01:18.4]} 19... Rbe8 {[%clk
0:01:45.5]} 20. Rf1 {[%clk 0:01:11]} 20... Nb5 {[%clk 0:01:34.6]} 21. Qe1 {[%clk
0:01:11]} 21... Qd8 {[%clk 0:01:26.2]} 22. Kh1 {[%clk 0:01:09.6]} 22... Kh7
{[%clk 0:01:22.7]} 23. Na4 {[%clk 0:01:09.4]} 23... Qd6 {[%clk 0:01:21.6]} 24.
Nb6 {[%clk 0:01:07.5]} 24... Nb4 {[%clk 0:01:18]} 25. Qd1 {[%clk 0:01:01.5]}
25... f5 {[%clk 0:01:13.2]} 26. Nc4 {[%clk 0:00:50.7]} 26... Qd7 {[%clk
0:01:06.7]} 27. exf5 {[%clk 0:00:37.2]} 27... gxf5 {[%clk 0:01:07.6]} 28. Bxb4
{[%clk 0:00:37.7]} 28... cxb4 {[%clk 0:01:07.1]} 29. Qh5 {[%clk 0:00:38.4]}
29... Rf8 {[%clk 0:00:54.9]} 30. Ng6 {[%clk 0:00:28.4]} 30... e4 {[%clk
0:00:48.3]} 31. Nxf8+ {[%clk 0:00:20.9]} 31... Bxf8 {[%clk 0:00:49.2]} 32. Ne5
{[%clk 0:00:17.1]} 32... Qd6 {[%clk 0:00:40.1]} 33. Ng6 {[%clk 0:00:13.1]} 33...
Rc7 {[%clk 0:00:32.8]} 34. dxe4 {[%clk 0:00:10.4]} 34... Bg7 {[%clk 0:00:26.3]}
35. exf5 {[%clk 0:00:10.4]} 35... Bf7 {[%clk 0:00:26.9]} 36. Rae1 {[%clk
0:00:08.8]} 36... Rxc2 {[%clk 0:00:26.9]} 37. Re7 {[%clk 0:00:07.2]} 37... Qxe7
{[%clk 0:00:24.6]} 38. Nxe7 {[%clk 0:00:02.3]} 38... Bxh5 {[%clk 0:00:24.3]} 39.
f6 {[%clk 0:00:03.2]} 39... Bxf6 {[%clk 0:00:22.3]} 40. Be4+ {[%clk 0:00:03.5]}
40... Kh8 {[%clk 0:00:21.8]} 41. Nd5 {[%clk 0:00:02.7]} 41... Re2 {[%clk
0:00:20.4]} 42. Nxf6 {[%clk 0:00:03.1]} 42... Rxe4 {[%clk 0:00:18]} 43. Nxe4
{[%clk 0:00:03.2]} 43... Bf3+ {[%clk 0:00:18.3]} 44. Kg1 {[%clk 0:00:04.1]}
44... Bxe4 {[%clk 0:00:19.2]} 45. Re1 {[%clk 0:00:04.9]} 45... Nc3 {[%clk
0:00:19.7]} 46. f3 {[%clk 0:00:05]} 46... d3 {[%clk 0:00:19.6]} 47. fxe4 {[%clk
0:00:04.7]} 47... d2 {[%clk 0:00:20]} 48. Rf1 {[%clk 0:00:05.6]} 48... d1=Q
{[%clk 0:00:19.9]} 49. Rxd1 {[%clk 0:00:06.2]} 49... Nxd1 {[%clk 0:00:20.8]} 50.
Kg2 {[%clk 0:00:06.2]} 50... Kg7 {[%clk 0:00:21.4]} 51. Kf3 {[%clk 0:00:07.1]}
51... Kf6 {[%clk 0:00:22]} 52. Kf4 {[%clk 0:00:07.7]} 0-1

[Event "Late-Titled-Tuesday-Blitz-January-16-2024"]
[Site "Chess.com"]
[Date "2024.01.16"]
[Round "3"]
[White "NikolaGry"]
[Black "TEREZANA"]
[Result "1-0"]
[WhiteElo "2740"]
[BlackElo "2519"]
[TimeControl "180+1"]
[EndTime "14:27:43 PST"]
[Termination "NikolaGry won by checkmate"]

1. b3 {[%clk 0:03:00.9]} 1... e5 {[%clk 0:02:51.2]} 2. Bb2 {[%clk 0:03:00.9]}
2... Nc6 {[%clk 0:02:51.3]} 3. c4 {[%clk 0:03:01.4]} 3... Nf6 {[%clk 0:02:48.4]}
4. e3 {[%clk 0:03:01.8]} 4... d5 {[%clk 0:02:45.1]} 5. cxd5 {[%clk 0:03:01.8]}
5... Nxd5 {[%clk 0:02:46]} 6. a3 {[%clk 0:03:02.1]} 6... Bd6 {[%clk 0:02:42.2]}
7. d3 {[%clk 0:02:59.4]} 7... O-O {[%clk 0:02:41]} 8. Nf3 {[%clk 0:02:59.5]}
8... Qe7 {[%clk 0:02:37.1]} 9. Nbd2 {[%clk 0:02:59.2]} 9... f5 {[%clk
0:02:24.4]} 10. Qc2 {[%clk 0:02:56.8]} 10... Be6 {[%clk 0:02:16.1]} 11. Be2
{[%clk 0:02:50.3]} 11... a5 {[%clk 0:02:12.1]} 12. O-O {[%clk 0:02:49.2]} 12...
Rad8 {[%clk 0:01:54.5]} 13. Rfe1 {[%clk 0:02:44]} 13... h6 {[%clk 0:01:41]} 14.
Bf1 {[%clk 0:02:41.7]} 14... Nf6 {[%clk 0:01:17.1]} 15. Nc4 {[%clk 0:02:24.7]}
15... Bf7 {[%clk 0:01:00.8]} 16. d4 {[%clk 0:02:13.1]} 16... e4 {[%clk
0:00:51.1]} 17. Nfe5 {[%clk 0:02:12.9]} 17... Bxe5 {[%clk 0:00:44.5]} 18. Nxe5
{[%clk 0:01:53.1]} 18... Nxe5 {[%clk 0:00:43.8]} 19. dxe5 {[%clk 0:01:53.1]}
19... Ng4 {[%clk 0:00:40.6]} 20. Rac1 {[%clk 0:01:44.5]} 20... c6 {[%clk
0:00:25.7]} 21. h3 {[%clk 0:01:33.4]} 21... Nxe5 {[%clk 0:00:24.1]} 22. Qc3
{[%clk 0:01:30.9]} 22... Rfe8 {[%clk 0:00:20.5]} 23. Qxa5 {[%clk 0:01:23.6]}
23... Bxb3 {[%clk 0:00:17.4]} 24. Qxe5 {[%clk 0:01:09.9]} 24... Qxe5 {[%clk
0:00:18.3]} 25. Bxe5 {[%clk 0:01:09.5]} 25... Rxe5 {[%clk 0:00:18.3]} 26. Rb1
{[%clk 0:01:09.6]} 26... Bf7 {[%clk 0:00:11.2]} 27. Rxb7 {[%clk 0:01:08.8]}
27... Ra5 {[%clk 0:00:11.8]} 28. Rc1 {[%clk 0:00:52.1]} 28... Bd5 {[%clk
0:00:11.1]} 29. Bc4 {[%clk 0:00:46.3]} 29... Rxa3 {[%clk 0:00:10.8]} 30. Bxd5+
{[%clk 0:00:45.4]} 30... Rxd5 {[%clk 0:00:10]} 31. Rxc6 {[%clk 0:00:44.1]} 31...
Ra1+ {[%clk 0:00:04.6]} 32. Kh2 {[%clk 0:00:43.3]} 32... Rd2 {[%clk 0:00:04.8]}
33. Rc8+ {[%clk 0:00:32.3]} 33... Kh7 {[%clk 0:00:04.2]} 34. Rcc7 {[%clk
0:00:30.9]} 34... Rxf2 {[%clk 0:00:04.5]} 35. Rxg7+ {[%clk 0:00:28.3]} 35... Kh8
{[%clk 0:00:05.2]} 36. Rgc7 {[%clk 0:00:20.4]} 36... Ra8 {[%clk 0:00:04]} 37.
Rh7+ {[%clk 0:00:18.8]} 37... Kg8 {[%clk 0:00:04.1]} 38. Rxh6 {[%clk 0:00:18.7]}
38... f4 {[%clk 0:00:02.2]} 39. Rg6+ {[%clk 0:00:16.5]} 39... Kh8 {[%clk
0:00:01.9]} 40. exf4 {[%clk 0:00:15.7]} 40... e3 {[%clk 0:00:01.4]} 41. Re7
{[%clk 0:00:14.3]} 41... Raa2 {[%clk 0:00:01.2]} 42. Rxe3 {[%clk 0:00:12.3]}
42... Rxf4 {[%clk 0:00:01.7]} 43. Reg3 {[%clk 0:00:10]} 43... Ra8 {[%clk
0:00:01.1]} 44. Rh6# {[%clk 0:00:09.6]} 1-0